fUSD/lending_fUSD_20250213
["ID","MTS","AMOUNT","RATE_DAILY","PERIOD"]
[352946865,1739454653717,-500.0,0.0001512,2]
[352946866,1739454653728,-500.0,0.0001512,2]
[352946867,1739454653737,-1126.51,0.0001512,2]
[352946868,1739454653748,-500.0,0.0001512,2]
[352946869,1739454653763,-961.69,0.0001512,2]
[352946870,1739454653772,-765.12,0.0001512,2]
[352946871,1739454653782,-2040.16,0.0001512,2]
[352946872,1739454653792,-1222.47,0.0001512,2]
[352946873,1739454653801,-1003.71,0.0001512,2]
[352946874,1739454653810,-1338.67,0.0001512,2]
[352946875,1739454653820,-2017.76,0.0001512,2]
[352946876,1739454653829,-1048.5,0.0001512,2]
[352946877,1739454653839,-1234.4,0.0001512,2]
[352946878,1739454653848,-1827.73,0.0001512,2]
[352946879,1739454653858,-500.0,0.0001512,2]
[352946880,1739454653868,-1873.64,0.0001512,2]
[352946881,1739454653878,-1831.24,0.0001512,2]
[352946882,1739454653888,-1990.45,0.0001512,2]
[352946883,1739454653897,-1361.29,0.0001512,2]
[352946884,1739454653906,-1077.54,0.0001512,2]
[352946885,1739454653916,-756.46,0.0001512,2]
[352946886,1739454653925,-2147.69,0.0001512,2]
[352946887,1739454653935,-1019.51,0.0001512,2]
[352946888,1739454653944,-2173.75,0.0001512,2]
[352946889,1739454653954,-267.296628,0.0001512,2]
[352946890,1739454653963,-267.296628,0.0001512,2]
[352946891,1739454653972,-151.0,0.00015121,2]
[352946892,1739454654169,-151.0,0.00015121,2]
[352946893,1739454654202,-500.0,0.00015121,2]
[352946894,1739454654211,-500.0,0.00015121,2]
[352946895,1739454654223,-715.67,0.00015121,2]
[352946896,1739454654233,-508.45193611,0.00015121,2]
[352946897,1739454654244,-500.0,0.00015121,2]
[352946898,1739454654256,-500.0,0.00015121,2]
[352946899,1739454654265,-500.0,0.00015121,2]
[352946900,1739454654275,-822.79,0.00015121,2]
[352946901,1739454654284,-678.23,0.00015121,2]
[352946902,1739454654294,-500.0,0.00015121,2]
[352946903,1739454654303,-500.0,0.00015121,2]
[352946904,1739454654312,-789.82,0.00015121,2]
[352946905,1739454654322,-615.87,0.00015121,2]
[352946906,1739454654331,-151.0,0.00015121,2]
[352946907,1739454654340,-151.0,0.00015121,2]
[352946908,1739454654350,-615.42,0.00015121,2]
[352946909,1739454654360,-500.0,0.00015121,2]
[352946910,1739454654369,-831.34,0.00015121,2]
[352946911,1739454654379,-500.0,0.00015121,2]
[352946912,1739454654388,-500.0,0.00015121,2]
[352946913,1739454654397,-643.22,0.00015121,2]
[352946914,1739454654406,-500.0,0.00015121,2]
[352946915,1739454654416,-500.0,0.00015121,2]
[352946916,1739454654425,-500.0,0.00015121,2]
[352946917,1739454654435,-500.0,0.00015121,2]
[352946918,1739454654445,-500.0,0.00015121,2]
[352946919,1739454654455,-500.0,0.00015121,2]
[352946920,1739454654465,-500.0,0.00015121,2]
[352946921,1739454654475,-500.0,0.00015121,2]
[352946922,1739454654484,-719.91,0.00015121,2]
[352946923,1739454654494,-500.0,0.00015121,2]
[352946924,1739454654505,-500.0,0.00015121,2]
[352946925,1739454654515,-500.0,0.00015121,2]
[352946926,1739454654524,-581.68,0.00015121,2]
[352946927,1739454654534,-500.0,0.00015121,2]
[352946928,1739454654545,-550.48,0.00015121,2]
[352946929,1739454654555,-500.0,0.00015121,2]
[352946930,1739454654564,-500.0,0.00015121,2]
[352946931,1739454654573,-500.0,0.00015121,2]
[352946932,1739454654583,-645.34,0.00015121,2]
[352946933,1739454654592,-500.0,0.00015121,2]
[352946934,1739454654601,-2028.36,0.00015121,2]
[352946935,1739454654610,-962.24,0.00015121,2]
[352946936,1739454654620,-706.37,0.00015121,2]
[352946937,1739454654629,-1182.5,0.00015121,2]
[352946938,1739454654639,-500.0,0.00015121,2]
[352946939,1739454654648,-629.22,0.00015121,2]
[352946940,1739454654657,-500.0,0.00015121,2]
[352946941,1739454654671,-565.47,0.00015121,2]
[352946942,1739454654681,-500.0,0.00015121,2]
[352946943,1739454654690,-589.48,0.00015121,2]
[352946944,1739454654700,-500.0,0.00015121,2]
[352946945,1739454654710,-830.6,0.00015121,2]
[352946946,1739454654720,-1020.06,0.00015121,2]
[352946947,1739454654730,-500.0,0.00015121,2]
[352946948,1739454654739,-500.0,0.00015121,2]
[352946949,1739454654749,-500.0,0.00015121,2]
[352946950,1739454654761,-151.0,0.00015121,2]
[352946951,1739454654770,-632.77813076,0.00015121,2]
[352946952,1739454654780,-1126.56,0.00015121,2]
[352946953,1739454654789,-500.0,0.00015121,2]
[352946954,1739454654799,-500.0,0.00015121,2]
[352946955,1739454654808,-808.83,0.00015121,2]
[352946956,1739454654818,-500.0,0.00015121,2]
[352946957,1739454654827,-1185.65,0.00015121,2]
[352946958,1739454654838,-707.07,0.00015121,2]
[352946959,1739454654847,-500.0,0.00015121,2]
[352946960,1739454654856,-500.0,0.00015121,2]
[352946961,1739454654866,-500.0,0.00015121,2]
[352946962,1739454654875,-925.83,0.00015121,2]
[352946963,1739454654884,-500.0,0.00015121,2]
[352946964,1739454654893,-500.0,0.00015121,2]
[352946965,1739454654903,-500.0,0.00015121,2]
[352946966,1739454654913,-936.04,0.00015121,2]
[352946967,1739454654922,-154.571206,0.00015121,2]
[352946968,1739454654931,-510.71286234,0.00015121,2]
[352946969,1739454654940,-151.0,0.00015121,2]
[352946970,1739454654949,-151.0,0.00015121,2]
[352946971,1739454654959,-151.0,0.00015121,2]
[352946972,1739454654968,-164.541785,0.00015122,2]
[352946973,1739454654977,-169.264937,0.00015127,2]
[352946974,1739454654986,-177.844834,0.00015127,2]
[352946975,1739454654995,-169.264937,0.00015127,2]
[352946976,1739454655006,-200.82617663,0.00015129,2]
[352946977,1739454655016,-500.0,0.00015129,2]
[352946978,1739454655025,-150.0,0.00015129,2]
[352946979,1739454655034,-500.0,0.00015129,2]
[352946980,1739454655044,-500.0,0.00015129,2]
[352946981,1739454655054,-248.54458418,0.00015129,2]
[352946982,1739454655063,-500.0,0.00015129,2]
[352946983,1739454655073,-150.0,0.00015129,2]
[352946984,1739454655082,-2477.0,0.00015129,2]
[352946985,1739454655092,-500.57359803,0.00015156,2]
[352946986,1739454655102,-269.25045134,0.00015156,2]
[352946987,1739454655111,-500.0,0.00015156,2]
[352946988,1739454655120,-500.0,0.00015156,2]
[352946989,1739454655129,-500.0,0.00015156,2]
[352946990,1739454655139,-2477.0,0.00015156,2]
[352946991,1739454655149,-173.7769329,0.0001516,2]
[352946992,1739454655159,-159.21955644,0.00015178,2]
[352946993,1739454655169,-154.91934717,0.00015178,2]
[352946994,1739454655179,-500.0,0.00015184,2]
[352946995,1739454655188,-500.0,0.00015184,2]
[352946996,1739454655198,-500.0,0.00015184,2]
[352946997,1739454655207,-2477.0,0.00015184,2]
[352946998,1739454655216,-1273.0,0.00015187,2]
[352946999,1739454655226,-2025.0,0.00015187,2]
[352947000,1739454655235,-150.0,0.00015187,2]
[352947001,1739454655244,-569.0,0.00015187,2]
[352947002,1739454655254,-638.0,0.00015187,2]
[352947003,1739454655264,-1786.0,0.00015187,2]
[352947004,1739454655273,-783.0,0.00015187,2]
[352947005,1739454655282,-2952.0,0.00015187,2]
[352947006,1739454655292,-539.0,0.00015187,2]
[352947007,1739454655302,-150.0,0.00015187,2]
[352947008,1739454655311,-3915.0,0.00015187,2]
[352947009,1739454655321,-150.0,0.00015187,2]
[352947010,1739454655331,-1008.0,0.00015187,2]
[352947011,1739454655340,-275.38593099,0.00015194,3]
[352947012,1739454655350,-131344.60570852,0.00015195,3]
[352947013,1739454655403,-1002753.07968118,0.00015195,3]
[352947014,1739454655868,-672.69,0.0001498,2]
[352947015,1739454655877,-2429.01,0.0001498,2]
[352947016,1739454655887,-2052.16,0.00014982,2]
[352947017,1739454655896,-500.0,0.00014982,2]
[352947018,1739454655905,-672.69,0.00015117,2]
[352947019,1739454655915,-2052.16,0.00015119,2]
[352947020,1739454655924,-500.0,0.00015119,2]
[352947021,1739454655933,-408865.41405177,0.00015195,3]
[352947022,1739454655942,-1362167.58360997,0.00015195,2]
[352947023,1739454655951,-267.296628,0.00015195,2]
[352947024,1739454655961,-267.296628,0.00015195,2]
[352947025,1739454655970,-267.296628,0.00015195,2]
[352947026,1739454655979,-267.296628,0.00015195,2]
[352947027,1739454655988,-1000.0,0.00015195,2]
[352947028,1739454655997,-238.16979806,0.00015198,2]
[352947029,1739454656009,-300.0,0.00015199,2]
[352947030,1739454656018,-300.0,0.00015199,2]
[352947031,1739454656028,-300.0,0.00015199,2]
[352947032,1739454656038,-300.0,0.00015199,2]
[352947033,1739454656047,-500.0,0.00015199,2]
[352947034,1739454656056,-999.0,0.00015199,2]
[352947035,1739454656065,-686.85,0.00015199,2]
[352947036,1739454656075,-686.85,0.00015199,2]
[352947037,1739454656084,-686.85,0.00015199,2]
[352947038,1739454656094,-686.85,0.00015199,2]
[352947039,1739454656103,-686.85,0.00015199,2]
[352947040,1739454656112,-686.85,0.00015199,2]
[352947041,1739454656122,-686.85,0.00015199,2]
[352947042,1739454656131,-686.85,0.00015199,2]
[352947043,1739454656141,-686.85,0.00015199,2]
[352947044,1739454656150,-686.85,0.00015199,2]
[352947045,1739454656160,-686.85,0.00015199,2]
[352947046,1739454656169,-686.85,0.00015199,2]
[352947047,1739454656178,-686.85,0.00015199,2]
[352947048,1739454656188,-686.85,0.00015199,2]
[352947049,1739454656197,-686.85,0.00015199,2]
[352947050,1739454656206,-1700075.65349147,0.000152,3]
[352947051,1739454656219,-279.26500005,0.000152,3]
[352947052,1739454657404,-325.5424239,0.00015095,2]
[352947053,1739454657413,-226.1418936,0.00015117,2]
[352947054,1739454657957,-500.0,0.00014981,2]
[352947055,1739454657967,-424.16768682,0.00015027,2]
[352947056,1739454657976,-72.25880628,0.00015117,2]
[352947057,1739454658027,-34.99898644,0.00015117,2]
[352947058,1739454658961,-429.41865551,0.0001498,2]
[352947059,1739454658983,-70.58134449,0.0001498,2]
[352947060,1739454658993,-500.0,0.0001498,2]
[352947061,1739454659003,-500.0,0.00014981,2]
[352947062,1739454659014,-609.74,0.00014982,2]
[352947063,1739454659024,-424.16768682,0.00015051,2]
[352947064,1739454659033,-2095.61031368,0.00015117,2]
[352947065,1739454659043,-500.0,0.00015117,2]
[352947066,1739454659052,-101.80065501,0.00015118,2]
[352947067,1739454659068,-370.9414182,0.00015118,2]
[352947068,1739454714132,550.0,0.00013,2]
[352947069,1739454744490,2448.86953523,0.0002,120]
[352947070,1739454751369,5159.7186,8.836e-05,2]
[352947071,1739454812468,164.12950323,0.0001498,30]
[352947072,1739454846876,1570.8571,8.973e-05,2]
[352947073,1739454939320,878.6239,8.836e-05,2]
[352947074,1739454959360,655.6787,8.851e-05,2]
[352947075,1739454994202,1323.8499,8.699e-05,2]
[352947076,1739455012633,852.8409,8.851e-05,2]
[352947077,1739455017409,5000.0,0.00011,10]
[352947078,1739455044391,1468.4309,0.000122,2]
[352947079,1739455457963,233.07,0.00010137,2]
[352947080,1739455517419,1370.48,0.00011746,2]
[352947082,1739455595601,71345.1267,8.836e-05,2]
[352947083,1739455641135,-4683.5691,0.000122,3]
[352947084,1739455641158,-150.0,0.00012666,2]
[352947085,1739455641181,-150.0,0.0001342,2]
[352947086,1739455641205,-150.0,0.0001342,2]
[352947087,1739455641231,-1379.22,0.00013606,2]
[352947088,1739455641255,-163.9,0.00013627,2]
[352947089,1739455641279,-250.0,0.00013754,2]
[352947090,1739455641304,-1000.0,0.00013783,2]
[352947091,1739455641328,-1370.48,0.0001401,2]
[352947092,1739455641350,-173.19,0.00014043,2]
[352947093,1739455641372,-889.04,0.00014063,2]
[352947094,1739455641395,-1500.0,0.00014077,2]
[352947095,1739455641419,-2000.0,0.00014087,2]
[352947096,1739455641442,-857.66798166,0.00014106,2]
[352947097,1739455721982,8401.1765,8.836e-05,2]
[352947098,1739455747158,-407.093086,0.00013068,2]
[352947099,1739455751248,-392.906914,0.00013068,2]
[352947100,1739455753637,500.0,0.00013068,2]
[352947101,1739455753910,700.0,0.00013068,2]
[352947102,1739455755118,-330.396606,0.00014035,2]
[352947103,1739455755141,-934.07201834,0.00014106,2]
[352947104,1739455755163,-150.0,0.00014115,2]
[352947105,1739455755187,-6861.15,0.00014124,2]
[352947106,1739455755211,-150.0,0.00014151,2]
[352947107,1739455755234,-975.35,0.00014202,2]
[352947108,1739455755257,-2370.73,0.00014224,2]
[352947109,1739455755282,-800.0,0.00014438,2]
[352947110,1739455755305,-652.519868,0.00014441,2]
[352947111,1739455755329,-541.54785095,0.00014441,2]
[352947112,1739455755352,-150.0,0.00014492,2]
[352947113,1739455755375,-544.0,0.00014493,2]
[352947114,1739455755399,-9999.99,0.00014493,2]
[352947115,1739455755420,-1004.01,0.00014493,2]
[352947116,1739455755443,-1385.16,0.00014493,2]
[352947117,1739455755465,-999.99,0.00014493,2]
[352947118,1739455755487,-3608.77,0.00014504,2]
[352947119,1739455755510,-6440.98,0.00014504,2]
[352947120,1739455755537,-150.99,0.00014504,2]
[352947121,1739455755558,-9999.99,0.00014504,2]
[352947122,1739455755581,-3005.36,0.00014504,2]
[352947123,1739455755602,-197.93501525,0.00014504,2]
[352947124,1739455772115,-700.0,0.00014438,2]
[352947125,1739455772140,-102.05498475,0.00014504,2]
[352947126,1739455772163,-1000.0,0.0001452,3]
[352947127,1739455772184,-949.47141525,0.0001467,2]
[352947134,1739455832285,-700.0,0.00014,2]
[352947135,1739455832295,-500.0,0.00014003,2]
[352947136,1739455832304,-150.0,0.00014336,2]
[352947137,1739455832314,-152.0,0.000146,2]
[352947138,1739455832323,-1121.214751,0.00014816,2]
[352947139,1739455832332,-1007.88095109,0.00014816,2]
[352947140,1739455832341,-1016.25628955,0.00014816,2]
[352947141,1739455832351,-389.03433998,0.00014817,2]
[352947142,1739455832360,-150.76613659,0.00014878,2]
[352947143,1739455832370,-5955.84110278,0.00014878,2]
[352947144,1739455832379,-1725.0,0.000149,2]
[352947145,1739455832389,-5955.84110271,0.00014925,2]
[352947146,1739455832398,-1952.2623,0.00014959,2]
[352947147,1739455832408,-27005.3962626,0.00014969,2]
[352947148,1739455832417,-720.25,0.00014969,2]
[352947149,1739455832427,-5955.84110271,0.00014972,2]
[352947150,1739455832436,-155.518058,0.00014978,2]
[352947151,1739455832447,-945.08,0.00014978,2]
[352947152,1739455832457,-2529.65,0.00014978,2]
[352947153,1739455832466,-3616.42,0.00014978,2]
[352947154,1739455832476,-500.0,0.00014978,2]
[352947155,1739455832485,-1242.65,0.00014978,2]
[352947156,1739455832495,-443.67063,0.00014978,2]
[352947157,1739455832504,-3176.79,0.00014978,2]
[352947158,1739455832514,-2168.34,0.00014978,2]
[352947159,1739455832523,-857.476541,0.00014978,2]
[352947160,1739455832532,-1903.21,0.00014978,2]
[352947161,1739455832542,-1554.0,0.00014978,2]
[352947162,1739455832551,-157.630456,0.00014978,2]
[352947163,1739455832560,-2936.71,0.00014978,2]
[352947164,1739455832570,-1113.59,0.00014978,2]
[352947165,1739455832580,-610.71,0.00014978,2]
[352947166,1739455832589,-1025.21721789,0.00014978,2]
[352947167,1739455832607,-1439.91278211,0.00014978,2]
[352947168,1739455832618,-1567.99,0.00014978,2]
[352947169,1739455832627,-779.36,0.00014978,2]
[352947170,1739455832637,-1879.99,0.00014978,2]
[352947171,1739455832646,-2151.08,0.00014978,2]
[352947172,1739455832655,-1718.84,0.00014978,2]
[352947173,1739455832664,-500.0,0.00014978,2]
[352947174,1739455832674,-1489.21,0.00014978,2]
[352947175,1739455832684,-1569.0,0.00014978,2]
[352947177,1739455832696,-1062.78,0.00014978,2]
[352947179,1739455832705,-2393.51,0.00014978,2]
[352947181,1739455832714,-2793.85,0.00014978,2]
[352947183,1739455832723,-2636.66,0.00014978,2]
[352947185,1739455832732,-3462.31,0.00014978,2]
[352947187,1739455832742,-53.11232085,0.00014978,2]
[352947191,1739455832771,-2257.35767915,0.00014978,2]
[352947193,1739455832780,-500.0,0.00014978,2]
[352947195,1739455832789,-500.0,0.00014978,2]
[352947197,1739455832799,-2586.89,0.00014978,2]
[352947199,1739455832809,-2821.6,0.00014978,2]
[352947200,1739455832818,-2606.86,0.00014978,2]
[352947202,1739455832827,-2620.65,0.00014978,2]
[352947204,1739455832836,-1462.6,0.00014978,2]
[352947206,1739455832846,-2074.13,0.00014978,2]
[352947208,1739455832855,-2596.54,0.00014978,2]
[352947210,1739455832864,-2752.99,0.00014978,2]
[352947212,1739455832874,-7789.9,0.00014978,2]
[352947214,1739455832883,-4050.98,0.00014978,2]
[352947216,1739455832892,-2195.64,0.00014978,2]
[352947218,1739455832901,-3073.48,0.00014978,2]
[352947219,1739455832911,-2153.77,0.00014978,2]
[352947222,1739455832920,-3453.61,0.00014978,2]
[352947224,1739455832931,-3627.59,0.00014978,2]
[352947226,1739455832940,-3808.64,0.00014978,2]
[352947227,1739455832952,-1940.36,0.00014978,2]
[352947230,1739455832963,-2042.52,0.00014978,2]
[352947232,1739455832974,-6135.55,0.00014978,2]
[352947234,1739455832983,-504.84739006,0.00014978,2]
[352947236,1739455832992,-500.0,0.00014978,2]
[352947238,1739455833002,-223.60925343,0.00014978,2]
[352947240,1739455833011,-603.12,0.00014978,2]
[352947241,1739455833020,-4283.46,0.00014978,2]
[352947243,1739455833030,-500.0,0.00014978,2]
[352947244,1739455833039,-1759.98,0.00014978,2]
[352947246,1739455833049,-500.0,0.00014978,2]
[352947247,1739455833059,-2938.26,0.00014978,2]
[352947248,1739455833073,-1985.39,0.00014978,2]
[352947249,1739455833083,-1189.92,0.00014978,2]
[352947250,1739455833093,-500.65557397,0.00014978,2]
[352947251,1739455833103,-1477.04,0.00014978,2]
[352947252,1739455833114,-500.0,0.00014978,2]
[352947253,1739455833125,-290.23116707,0.00014978,2]
[352947254,1739455833135,-346.18986329,0.00014979,2]
[352947255,1739455833147,-500.0,0.00014979,2]
[352947256,1739455833157,-500.90151274,0.00014979,2]
[352947257,1739455833168,-589.84934147,0.00014979,2]
[352947258,1739455833177,-500.0,0.00014979,2]
[352947259,1739455833187,-500.0,0.00014979,2]
[352947260,1739455833199,-500.0,0.00014979,2]
[352947261,1739455833209,-505.14548056,0.00014979,2]
[352947262,1739455833219,-500.0,0.00014979,2]
[352947263,1739455833228,-500.0,0.00014979,2]
[352947264,1739455833239,-541.77028171,0.00014979,2]
[352947265,1739455833248,-501.66708305,0.00014979,2]
[352947266,1739455833259,-500.28960545,0.00014979,2]
[352947267,1739455833268,-500.0,0.00014979,2]
[352947268,1739455833278,-501.2481754,0.00014979,2]
[352947269,1739455833287,-500.0,0.00014979,2]
[352947270,1739455833297,-500.0,0.00014979,2]
[352947271,1739455833307,-500.0,0.00014979,2]
[352947272,1739455833317,-1326.39,0.00014979,2]
[352947273,1739455833327,-500.0,0.00014979,2]
[352947274,1739455833337,-649.74,0.00014979,2]
[352947275,1739455833346,-500.0,0.00014979,2]
[352947276,1739455833356,-501.29873366,0.00014979,2]
[352947277,1739455833366,-607.70010602,0.00014979,2]
[352947278,1739455833376,-500.0,0.00014979,2]
[352947279,1739455833386,-503.4784583,0.00014979,2]
[352947280,1739455833395,-502.86772417,0.00014979,2]
[352947281,1739455833405,-500.0,0.00014979,2]
[352947282,1739455833415,-1265.27,0.00014979,2]
[352947283,1739455833424,-500.0,0.00014979,2]
[352947284,1739455833434,-500.0,0.00014979,2]
[352947285,1739455833445,-500.0,0.00014979,2]
[352947286,1739455833455,-502.17212235,0.00014979,2]
[352947287,1739455833464,-501.0150584,0.00014979,2]
[352947288,1739455833475,-1976.01,0.00014979,2]
[352947289,1739455833485,-629.47570865,0.00014979,2]
[352947290,1739455833495,-500.70862141,0.00014979,2]
[352947291,1739455833505,-172.4713094,0.00014979,2]
[352947292,1739455833514,-500.0,0.00014979,2]
[352947293,1739455833524,-913.07,0.00014979,2]
[352947294,1739455833534,-501.84431738,0.00014979,2]
[352947295,1739455833544,-600.11,0.00014979,2]
[352947296,1739455833553,-504.33790305,0.00014979,2]
[352947297,1739455833563,-504.12757462,0.00014979,2]
[352947298,1739455833573,-500.0,0.00014979,2]
[352947299,1739455833583,-501.70150771,0.00014979,2]
[352947300,1739455833593,-500.0,0.00014979,2]
[352947301,1739455833602,-500.0,0.00014979,2]
[352947302,1739455833611,-502.95514053,0.00014979,2]
[352947303,1739455833621,-500.0,0.00014979,2]
[352947304,1739455833631,-500.0,0.00014979,2]
[352947305,1739455833641,-570.99,0.00014979,2]
[352947306,1739455833651,-500.0,0.00014979,2]
[352947307,1739455833660,-500.0,0.00014979,2]
[352947308,1739455833670,-500.0,0.00014979,2]
[352947309,1739455833680,-1206.75,0.00014979,2]
[352947310,1739455833689,-500.0,0.00014979,2]
[352947311,1739455833700,-500.0,0.00014979,2]
[352947312,1739455833710,-502.23849842,0.00014979,2]
[352947313,1739455833720,-514.62,0.00014979,2]
[352947314,1739455833729,-503.02073104,0.00014979,2]
[352947315,1739455833739,-500.0,0.00014979,2]
[352947316,1739455833748,-500.0,0.00014979,2]
[352947317,1739455833757,-500.0,0.00014979,2]
[352947318,1739455833767,-393.11443953,0.00014979,2]
[352947319,1739455833776,-500.0,0.00014979,2]
[352947320,1739455833785,-500.0,0.00014979,2]
[352947321,1739455833795,-500.0,0.00014979,2]
[352947322,1739455833804,-500.0,0.00014979,2]
[352947323,1739455833814,-500.0,0.00014979,2]
[352947324,1739455833823,-316.77982451,0.00014979,2]
[352947325,1739455833832,-891.93,0.00014979,2]
[352947326,1739455833841,-500.0,0.00014979,2]
[352947327,1739455833851,-500.0,0.00014979,2]
[352947328,1739455833860,-649.7,0.00014979,2]
[352947329,1739455833869,-500.0,0.00014979,2]
[352947330,1739455833879,-500.0,0.00014979,2]
[352947331,1739455833889,-502.18264936,0.00014979,2]
[352947332,1739455833898,-565.5,0.00014979,2]
[352947333,1739455833908,-503.46935905,0.00014979,2]
[352947334,1739455833917,-500.0,0.00014979,2]
[352947335,1739455833927,-500.0,0.00014979,2]
[352947336,1739455833937,-1692.58,0.00014979,2]
[352947337,1739455833948,-500.0,0.00014979,2]
[352947338,1739455833958,-500.0,0.00014979,2]
[352947339,1739455833967,-775.67,0.00014979,2]
[352947340,1739455833977,-500.80652949,0.00014979,2]
[352947341,1739455833987,-500.0,0.00014979,2]
[352947342,1739455833996,-500.0,0.00014979,2]
[352947343,1739455834005,-1242.74,0.00014979,2]
[352947344,1739455834014,-500.0,0.00014979,2]
[352947345,1739455834023,-500.0,0.00014979,2]
[352947346,1739455834033,-500.0,0.00014979,2]
[352947347,1739455834042,-500.0,0.00014979,2]
[352947348,1739455834052,-500.0,0.00014979,2]
[352947349,1739455834061,-500.0,0.00014979,2]
[352947350,1739455834071,-500.72698189,0.00014979,2]
[352947351,1739455834082,-500.0,0.00014979,2]
[352947352,1739455834092,-501.69376639,0.00014979,2]
[352947353,1739455834101,-500.0,0.00014979,2]
[352947354,1739455834111,-1567.53,0.00014979,2]
[352947355,1739455834122,-500.0,0.00014979,2]
[352947356,1739455834132,-500.0,0.00014979,2]
[352947357,1739455834141,-500.0,0.00014979,2]
[352947358,1739455834157,-500.0,0.00014979,2]
[352947359,1739455834167,-500.0,0.00014979,2]
[352947360,1739455834177,-500.0,0.00014979,2]
[352947361,1739455834187,-500.0,0.00014979,2]
[352947362,1739455834199,-500.0,0.00014979,2]
[352947363,1739455834208,-500.0,0.00014979,2]
[352947364,1739455834218,-500.0,0.00014979,2]
[352947365,1739455834228,-500.0,0.00014979,2]
[352947366,1739455834238,-500.0,0.00014979,2]
[352947367,1739455834248,-500.0,0.00014979,2]
[352947368,1739455834258,-500.0,0.00014979,2]
[352947369,1739455834267,-500.0,0.00014979,2]
[352947370,1739455834276,-805.44,0.00014979,2]
[352947371,1739455834286,-500.0,0.00014979,2]
[352947372,1739455834295,-500.0,0.00014979,2]
[352947373,1739455834305,-500.0,0.00014979,2]
[352947374,1739455834314,-500.0,0.00014979,2]
[352947375,1739455834324,-500.0,0.00014979,2]
[352947376,1739455834334,-856.24,0.00014979,2]
[352947377,1739455834344,-504.54184634,0.00014979,2]
[352947378,1739455834354,-500.0,0.00014979,2]
[352947379,1739455834363,-700.98,0.00014979,2]
[352947380,1739455834374,-500.0,0.00014979,2]
[352947381,1739455834384,-765.81,0.00014979,2]
[352947382,1739455834394,-500.0,0.00014979,2]
[352947383,1739455834404,-502.68440932,0.00014979,2]
[352947384,1739455834414,-500.0,0.00014979,2]
[352947385,1739455834424,-500.0,0.00014979,2]
[352947386,1739455834434,-1600.95,0.00014979,2]
[352947387,1739455834444,-806.66,0.00014979,2]
[352947388,1739455834454,-501.29055799,0.00014979,2]
[352947389,1739455834464,-898.81,0.00014979,2]
[352947390,1739455834473,-500.0,0.00014979,2]
[352947391,1739455834483,-500.79350482,0.00014979,2]
[352947392,1739455834493,-500.0,0.00014979,2]
[352947393,1739455834503,-500.0,0.00014979,2]
[352947394,1739455834513,-500.0,0.00014979,2]
[352947395,1739455834522,-500.0,0.00014979,2]
[352947396,1739455834532,-500.0,0.00014979,2]
[352947397,1739455834541,-500.0,0.00014979,2]
[352947398,1739455834551,-500.0,0.00014979,2]
[352947399,1739455834561,-500.0,0.00014979,2]
[352947400,1739455834570,-500.0,0.00014979,2]
[352947401,1739455834580,-500.0,0.00014979,2]
[352947402,1739455834590,-500.0,0.00014979,2]
[352947403,1739455834599,-500.0,0.00014979,2]
[352947404,1739455834608,-500.0,0.00014979,2]
[352947405,1739455834617,-500.0,0.00014979,2]
[352947406,1739455834627,-500.0,0.00014979,2]